fUST/lending_fUST_20250924
["ID","MTS","AMOUNT","RATE_DAILY","PERIOD"]
[387409651,1758718248442,-480.0,0.00019452,2]
[387409652,1758718248452,-480.0,0.00019452,2]
[387409653,1758718248461,-480.0,0.00019452,2]
[387409654,1758718248471,-480.0,0.00019452,2]
[387409655,1758718248481,-480.0,0.00019452,2]
[387409656,1758718248490,-480.0,0.00019452,2]
[387409657,1758718248500,-480.0,0.00019452,2]
[387409658,1758718248509,-552.23,0.00019452,2]
[387409659,1758718248519,-480.0,0.00019452,2]
[387409660,1758718248529,-480.0,0.00019452,2]
[387409661,1758718248538,-480.0,0.00019452,2]
[387409662,1758718248547,-480.0,0.00019452,2]
[387409663,1758718248557,-480.0,0.00019452,2]
[387409664,1758718248566,-486.54576559,0.00019452,2]
[387409665,1758718248576,-480.0,0.00019452,2]
[387409666,1758718248585,-480.0,0.00019452,2]
[387409667,1758718248594,-480.0,0.00019452,2]
[387409668,1758718248604,-480.0,0.00019452,2]
[387409669,1758718248614,-480.0,0.00019452,2]
[387409670,1758718248623,-480.0,0.00019452,2]
[387409671,1758718248633,-480.0,0.00019452,2]
[387409672,1758718248642,-480.0,0.00019452,2]
[387409673,1758718248652,-480.0,0.00019452,2]
[387409674,1758718248662,-480.0,0.00019452,2]
[387409675,1758718248671,-480.0,0.00019452,2]
[387409676,1758718248681,-480.0,0.00019452,2]
[387409677,1758718248691,-480.0,0.00019452,2]
[387409678,1758718248700,-480.0,0.00019452,2]
[387409679,1758718248710,-480.0,0.00019452,2]
[387409680,1758718248720,-480.0,0.00019452,2]
[387409681,1758718248730,-480.0,0.00019452,2]
[387409682,1758718248739,-1403.37,0.00019452,2]
[387409683,1758718248750,-480.0,0.00019452,2]
[387409684,1758718248760,-480.0,0.00019452,2]
[387409685,1758718248769,-480.0,0.00019452,2]
[387409686,1758718248779,-480.0,0.00019452,2]
[387409687,1758718248790,-480.0,0.00019452,2]
[387409688,1758718248799,-552.67,0.00019452,2]
[387409689,1758718248809,-480.0,0.00019452,2]
[387409690,1758718248819,-2108.7,0.00019452,2]
[387409691,1758718248832,-480.0,0.00019452,2]
[387409692,1758718248842,-629.74,0.00019452,2]
[387409693,1758718248852,-480.0,0.00019452,2]
[387409694,1758718248863,-480.0,0.00019452,2]
[387409695,1758718248873,-876.33,0.00019452,2]
[387409696,1758718248883,-480.0,0.00019452,2]
[387409697,1758718248892,-480.0,0.00019452,2]
[387409698,1758718248903,-480.0,0.00019452,2]
[387409699,1758718248912,-480.0,0.00019452,2]
[387409700,1758718248922,-1160.26,0.00019452,2]
[387409701,1758718248932,-480.0,0.00019452,2]
[387409702,1758718248941,-480.0,0.00019452,2]
[387409703,1758718248951,-480.0,0.00019452,2]
[387409704,1758718248960,-998.19,0.00019452,2]
[387409705,1758718248969,-480.0,0.00019452,2]
[387409706,1758718248979,-480.0,0.00019452,2]
[387409707,1758718248988,-480.0,0.00019452,2]
[387409708,1758718248998,-480.0,0.00019452,2]
[387409709,1758718249008,-480.0,0.00019452,2]
[387409710,1758718249019,-480.0,0.00019452,2]
[387409711,1758718249028,-480.0,0.00019452,2]
[387409712,1758718249037,-480.0,0.00019452,2]
[387409713,1758718249047,-429.05919106,0.00019452,2]
[387409714,1758718249056,-480.0,0.00019452,2]
[387409715,1758718249065,-1271.72,0.00019452,2]
[387409716,1758718249074,-776.94,0.00019452,2]
[387409717,1758718249084,-480.0,0.00019452,2]
[387409718,1758718249094,-697.32,0.00019452,2]
[387409719,1758718249103,-480.0,0.00019452,2]
[387409720,1758718249113,-595.9,0.00019452,2]
[387409721,1758718249122,-480.0,0.00019452,2]
[387409722,1758718249132,-480.0,0.00019452,2]
[387409723,1758718249141,-480.0,0.00019452,2]
[387409724,1758718249150,-989.45,0.00019452,2]
[387409725,1758718249160,-480.0,0.00019452,2]
[387409726,1758718249170,-1167.27,0.00019452,2]
[387409727,1758718249180,-480.0,0.00019452,2]
[387409728,1758718249190,-480.0,0.00019452,2]
[387409729,1758718249199,-487.56,0.00019452,2]
[387409730,1758718249208,-480.0,0.00019452,2]
[387409731,1758718249218,-544.6245407,0.00019452,2]
[387409732,1758718249227,-480.0,0.00019452,2]
[387409733,1758718249236,-480.0,0.00019452,2]
[387409734,1758718249246,-480.0,0.00019452,2]
[387409735,1758718249255,-480.0,0.00019452,2]
[387409736,1758718249264,-728.11,0.00019452,2]
[387409737,1758718249274,-480.0,0.00019452,2]
[387409738,1758718249284,-1545.9,0.00019452,2]
[387409739,1758718249293,-480.0,0.00019452,2]
[387409740,1758718249303,-480.0,0.00019452,2]
[387409741,1758718249312,-500.0,0.00019452,2]
[387409742,1758718249321,-500.0,0.00019473,2]
[387409743,1758718249331,-500.72783657,0.00019473,2]
[387409744,1758718249340,-500.0,0.00019473,2]
[387409745,1758718249350,-500.0,0.00019473,2]
[387409746,1758718249360,-152.25206667,0.0001951,2]
[387409747,1758718249369,-631.02,0.00019565,2]
[387409748,1758718249379,-500.0,0.00019626,2]
[387409749,1758718249388,-480.0,0.00019726,2]
[387409750,1758718249397,-480.0,0.00019726,2]
[387409751,1758718249406,-419.55,0.00019726,2]
[387409752,1758718249416,-480.0,0.00019726,2]
[387409753,1758718249425,-480.0,0.00019726,2]
[387409754,1758718249434,-480.0,0.00019726,2]
[387409755,1758718249443,-191.28,0.00019726,2]
[387409756,1758718249516,-336.14839514,0.00019726,2]
[387409757,1758718249527,-480.0,0.00019726,2]
[387409758,1758718249536,-480.0,0.00019726,2]
[387409759,1758718249545,-480.0,0.00019726,2]
[387409760,1758718249554,-480.0,0.00019726,2]
[387409761,1758718249564,-480.0,0.00019726,2]
[387409762,1758718249573,-480.0,0.00019726,2]
[387409763,1758718249583,-235.88,0.00019726,2]
[387409764,1758718249592,-480.0,0.00019726,2]
[387409765,1758718249601,-480.0,0.00019726,2]
[387409766,1758718249610,-480.0,0.00019726,2]
[387409767,1758718249620,-480.0,0.00019726,2]
[387409768,1758718249630,-480.0,0.00019726,2]
[387409769,1758718249639,-480.0,0.00019726,2]
[387409770,1758718249649,-480.0,0.00019726,2]
[387409771,1758718249658,-513.5,0.00019726,2]
[387409772,1758718249668,-480.0,0.00019726,2]
[387409773,1758718249678,-480.0,0.00019726,2]
[387409774,1758718249687,-378.36,0.00019726,2]
[387409775,1758718249697,-480.0,0.00019726,2]
[387409776,1758718249706,-480.0,0.00019726,2]
[387409777,1758718249716,-480.0,0.00019726,2]
[387409778,1758718249726,-480.0,0.00019726,2]
[387409779,1758718249735,-480.0,0.00019726,2]
[387409780,1758718249744,-480.0,0.00019726,2]
[387409781,1758718249754,-480.0,0.00019726,2]
[387409782,1758718249763,-480.0,0.00019726,2]
[387409783,1758718249774,-480.0,0.00019726,2]
[387409784,1758718249783,-283.8261988,0.00019726,2]
[387409785,1758718249792,-480.0,0.00019726,2]
[387409786,1758718249802,-480.0,0.00019726,2]
[387409787,1758718249812,-480.0,0.00019726,2]
[387409788,1758718249824,-480.0,0.00019726,2]
[387409789,1758718249833,-803.76,0.00019726,2]
[387409790,1758718249843,-480.0,0.00019726,2]
[387409791,1758718249852,-175.57397466,0.00019726,2]
[387409792,1758718249862,-480.0,0.00019726,2]
[387409793,1758718249871,-480.0,0.00019726,2]
[387409794,1758718249881,-480.0,0.00019726,2]
[387409795,1758718249890,-480.0,0.00019726,2]
[387409796,1758718249899,-437.85862222,0.00019726,2]
[387409797,1758718249909,-480.0,0.00019726,2]
[387409798,1758718249918,-480.0,0.00019726,2]
[387409799,1758718249927,-480.0,0.00019726,2]
[387409800,1758718249937,-480.0,0.00019726,2]
[387409801,1758718249946,-480.0,0.00019726,2]
[387409802,1758718249955,-480.0,0.00019726,2]
[387409803,1758718249965,-480.0,0.00019726,2]
[387409804,1758718249974,-756.38,0.00019726,2]
[387409805,1758718249983,-480.0,0.00019726,2]
[387409806,1758718249993,-272.90654181,0.00019726,2]
[387409807,1758718250011,-207.09345819,0.00019726,2]
[387409808,1758718250021,-484.20275059,0.00019726,2]
[387409809,1758718250030,-3667.38238334,0.00019726,2]
[387409810,1758718250045,-292.25761666,0.00019726,2]
[387409811,1758718250055,-480.0,0.00019726,2]
[387409812,1758718250064,-227.74238334,0.00019726,2]
[387409815,1758718391718,500.0,0.00027397,120]
[387409821,1758718843609,265.52,0.00021042,30]
[387409822,1758718844126,531.04,0.00022044,30]
[387409823,1758718844674,796.56,0.00023046,30]
[387409836,1758718928950,256.83,0.0002113,30]
[387409837,1758718929460,513.66,0.00022136,30]
[387409838,1758718929963,770.49,0.00023143,30]
[387409839,1758718982717,-172.02823382,0.00018019,2]
[387409840,1758718994331,-137.94363943,0.00018019,2]
[387409841,1758718994352,-224.80899483,0.00018019,2]
[387409842,1758719005667,-185.23960757,0.00018019,2]
[387409843,1758719008645,-163.94949083,0.00018019,2]
[387409844,1758719008975,-664.64951229,0.00018019,2]
[387409845,1758719014854,248.42,0.00021124,30]
[387409846,1758719015283,496.85,0.0002213,30]
[387409847,1758719016167,745.27,0.00023136,30]
[387409848,1758719021907,500.0,0.00018,2]
[387409849,1758719085326,222.63420651,0.00018,2]
[387409850,1758719103313,240.29,0.00021117,30]
[387409851,1758719103831,480.59,0.00022122,30]
[387409852,1758719104351,720.88,0.00023128,30]
[387409861,1758719189750,232.43,0.00021331,30]
[387409862,1758719190235,464.86,0.00022347,30]
[387409863,1758719190752,697.29,0.00023363,30]
[387409864,1758719275579,224.82,0.00021144,30]
[387409865,1758719276081,449.65,0.0002215,30]
[387409866,1758719276562,674.47,0.00023157,30]
[387409867,1758719361586,217.47,0.00021242,30]
[387409868,1758719362095,434.93,0.00022253,30]
[387409869,1758719362583,652.4,0.00023265,30]
[387409946,1758719432642,-353.63369349,0.000181,2]
[387409947,1758719432652,-216.4317903,0.00018177,2]
[387409948,1758719432663,-300.0,0.00019077,2]
[387409949,1758719432672,-1200.0,0.00019077,2]
[387409950,1758719432682,-1447.8333733,0.00019078,2]
[387409951,1758719432696,-516.97828002,0.00019078,2]
[387409952,1758719432706,-7070.42577877,0.00019078,2]
[387409953,1758719432716,-1964.81165332,0.00019147,2]
[387409954,1758719432725,-12128.72245588,0.00019168,2]
[387409955,1758719432735,-418.03,0.00019168,3]
[387409956,1758719432745,-766.38,0.00019168,3]
[387409957,1758719432754,-383.19,0.00019168,3]
[387409958,1758719432765,-191.6,0.00019168,3]
[387409959,1758719432774,-574.8,0.00019168,3]
[387409960,1758719432784,-500.0,0.00019177,2]
[387409962,1758719432794,-386.89868646,0.00019177,2]
[387409963,1758719432804,-500.0,0.00019177,2]
[387409964,1758719432813,-500.0,0.00019177,2]
[387409965,1758719432823,-500.0,0.00019177,2]
[387409967,1758719432832,-500.0,0.00019177,2]
[387409968,1758719432844,-500.0,0.00019177,2]
[387409970,1758719432854,-500.0,0.00019177,2]
[387409971,1758719432863,-500.0,0.00019177,2]
[387409972,1758719432873,-500.0,0.00019177,2]
[387409973,1758719432892,-165.07195642,0.00019177,2]
[387409974,1758719432905,-500.0,0.00019177,2]
[387409975,1758719432915,-500.0,0.00019177,2]
[387409976,1758719432924,-500.0,0.00019177,2]
[387409977,1758719432934,-600.0,0.00019177,2]
[387409978,1758719432945,-175.06392907,0.00019177,2]
[387409979,1758719432955,-286.1931903,0.00019177,2]
[387409980,1758719432965,-480.0,0.00019178,2]
[387409981,1758719432974,-480.0,0.00019178,2]
[387409982,1758719432984,-480.0,0.00019178,2]
[387409983,1758719432994,-480.0,0.00019178,2]
[387409984,1758719433004,-480.0,0.00019178,2]
[387409985,1758719433014,-480.0,0.00019178,2]
[387409986,1758719433023,-480.0,0.00019178,2]
[387409987,1758719433033,-480.0,0.00019178,2]
[387409988,1758719433042,-480.0,0.00019178,2]
[387409989,1758719433052,-480.0,0.00019178,2]
[387409990,1758719433062,-599.5867322,0.00019178,2]
[387409991,1758719433072,-482.51812744,0.00019178,2]
[387409992,1758719433082,-480.0,0.00019178,2]
[387409993,1758719433092,-480.0,0.00019178,2]
[387409994,1758719433101,-481.89742107,0.00019178,2]
[387409995,1758719433111,-480.0,0.00019178,2]
[387409996,1758719433120,-520.0,0.00019178,3]
[387409997,1758719433130,-480.0,0.00019178,2]
[387409999,1758719433139,-480.0,0.00019178,2]
[387410001,1758719433149,-481.02977446,0.00019178,2]
[387410003,1758719433158,-480.0,0.00019178,2]
[387410005,1758719433168,-480.0,0.00019178,2]
[387410007,1758719433178,-480.0,0.00019178,2]
[387410009,1758719433187,-480.0,0.00019178,2]
[387410010,1758719433197,-480.0,0.00019178,2]
[387410012,1758719433208,-481.42039899,0.00019178,2]
[387410015,1758719433219,-480.0,0.00019178,2]
[387410017,1758719433235,-480.0,0.00019178,2]
[387410020,1758719433250,-484.32810229,0.00019178,2]
[387410022,1758719433263,-480.0,0.00019178,2]
[387410024,1758719433278,-480.0,0.00019178,2]
[387410026,1758719433294,-480.0,0.00019178,2]
[387410029,1758719433309,-480.0,0.00019178,2]
[387410032,1758719433325,-480.0,0.00019178,2]
[387410034,1758719433339,-480.0,0.00019178,2]
[387410036,1758719433353,-167.67066776,0.00019178,2]
[387410038,1758719433367,-379.69046702,0.00019178,2]
[387410041,1758719433381,-480.0,0.00019178,2]
[387410043,1758719433395,-480.0,0.00019178,2]
[387410045,1758719433407,-480.0,0.00019178,2]
[387410048,1758719433419,-480.0,0.00019178,2]
[387410050,1758719433434,-480.0,0.00019178,2]
[387410052,1758719433451,-480.0,0.00019178,2]
[387410055,1758719433466,-216.1334439,0.00019178,2]
[387410057,1758719433483,-503.78321287,0.00019178,2]
[387410058,1758719433497,-480.0,0.00019178,2]
[387410059,1758719433508,-580.25244934,0.00019178,2]
[387410062,1758719433522,-480.0,0.00019178,2]
[387410064,1758719433539,-480.0,0.00019178,2]
[387410066,1758719433554,-480.0,0.00019178,2]
[387410068,1758719433567,-481.38585255,0.00019178,2]
[387410069,1758719433582,-480.0,0.00019178,2]
[387410070,1758719433597,-480.0,0.00019178,2]
[387410071,1758719433610,-482.68015481,0.00019178,2]
[387410072,1758719433622,-483.67190799,0.00019178,2]
[387410073,1758719433635,-267.34693362,0.00019178,2]
[387410074,1758719433648,-480.0,0.00019178,2]
[387410075,1758719433663,-480.0,0.00019178,2]
[387410076,1758719433676,-480.0,0.00019178,2]
[387410077,1758719433690,-480.0,0.00019178,2]
[387410079,1758719433703,-480.0,0.00019178,2]
[387410082,1758719433717,-480.0,0.00019178,2]
[387410084,1758719433731,-480.0,0.00019178,2]
[387410086,1758719433743,-480.0,0.00019178,2]
[387410088,1758719433756,-483.46880554,0.00019178,2]
[387410091,1758719433769,-480.0,0.00019178,2]
[387410093,1758719433782,-315.82604801,0.00019178,2]
[387410096,1758719433807,-140.78331488,0.00019178,2]
[387410097,1758719433823,-480.0,0.00019178,2]
[387410098,1758719433836,-480.0,0.00019178,2]
[387410099,1758719433849,-480.0,0.00019178,2]
[387410100,1758719433861,-480.0,0.00019178,2]
[387410101,1758719433874,-480.0,0.00019178,2]
[387410102,1758719433887,-482.98665122,0.00019178,2]
[387410103,1758719433900,-480.0,0.00019178,2]
[387410104,1758719433914,-500.0,0.00019178,2]
[387410105,1758719433927,-500.0,0.00019178,2]
[387410106,1758719433940,-500.0,0.00019178,2]
[387410107,1758719433952,-480.0,0.00019178,2]
[387410108,1758719433965,-480.0,0.00019178,2]
[387410109,1758719433977,-480.0,0.00019178,2]
[387410110,1758719433990,-1000.0,0.00019178,2]
[387410111,1758719434002,-151.0,0.00019178,2]
[387410112,1758719434016,-480.0,0.00019178,2]
[387410113,1758719434028,-198.94063915,0.00019178,2]
[387410114,1758719434041,-480.0,0.00019178,2]
[387410115,1758719434053,-480.0,0.00019178,2]
[387410116,1758719434065,-519.98,0.00019178,2]
[387410117,1758719434078,-480.0,0.00019178,2]
[387410118,1758719434088,-480.0,0.00019178,2]
[387410119,1758719434214,-480.0,0.00019178,2]
[387410120,1758719434230,-480.0,0.00019178,2]
[387410121,1758719434239,-509.31,0.00019178,2]
[387410122,1758719434249,-480.0,0.00019178,2]
[387410123,1758719434259,-480.0,0.00019178,2]
[387410124,1758719434268,-480.0,0.00019178,2]
[387410125,1758719434278,-165.19029107,0.00019178,2]
[387410126,1758719434287,-480.0,0.00019178,2]
[387410127,1758719434297,-480.0,0.00019178,2]
[387410128,1758719434307,-480.0,0.00019178,2]
[387410129,1758719434318,-349.0767121,0.00019178,2]
[387410130,1758719434331,-150.9232879,0.00019178,2]
[387410131,1758719434340,-500.0,0.00019178,2]
[387410132,1758719434349,-500.0,0.00019178,2]
[387410133,1758719434359,-500.0,0.00019178,2]
[387410134,1758719434368,-500.0,0.00019178,2]
[387410135,1758719434378,-500.0,0.00019178,2]
[387410136,1758719434387,-500.0,0.00019178,2]
[387410137,1758719434397,-480.0,0.00019178,2]
[387410138,1758719434407,-500.0,0.00019178,2]
[387410139,1758719434416,-500.0,0.00019178,2]
[387410140,1758719434426,-480.0,0.00019178,2]
[387410141,1758719434436,-480.0,0.00019178,2]
[387410142,1758719434448,-480.0,0.00019178,2]
[387410143,1758719434460,-480.0,0.00019178,2]
[387410144,1758719434473,-480.0,0.00019178,2]
[387410145,1758719434483,-480.0,0.00019178,2]
[387410146,1758719434493,-605.66,0.00019178,2]
[387410147,1758719434502,-605.66,0.00019178,2]
[387410148,1758719434512,-480.0,0.00019178,2]
[387410149,1758719434522,-605.66,0.00019178,2]
[387410150,1758719434534,-605.66,0.00019178,2]
[387410151,1758719434546,-605.66,0.00019178,2]
[387410152,1758719434556,-605.66,0.00019178,2]
[387410153,1758719434565,-480.0,0.00019178,2]
[387410154,1758719434575,-605.66,0.00019178,2]
[387410155,1758719434585,-605.66,0.00019178,2]
[387410156,1758719434594,-605.66,0.00019178,2]
[387410157,1758719434604,-480.0,0.00019178,2]
[387410158,1758719434614,-480.0,0.00019178,2]
[387410159,1758719434626,-480.0,0.00019178,2]
[387410160,1758719434636,-151.0,0.00019178,2]
[387410161,1758719434646,-480.0,0.00019178,2]
[387410162,1758719434656,-152.02672849,0.00019178,2]
[387410163,1758719434666,-151.0,0.00019178,2]
[387410164,1758719434676,-480.0,0.00019178,2]
[387410165,1758719434685,-151.63968628,0.00019178,2]
[387410166,1758719434695,-480.0,0.00019178,2]
[387410167,1758719434705,-151.0,0.00019178,2]
[387410168,1758719434714,-480.0,0.00019178,2]
[387410169,1758719434724,-480.0,0.00019178,2]
[387410170,1758719434733,-481.40249902,0.00019178,2]
[387410171,1758719434742,-480.0,0.00019178,2]
[387410172,1758719434752,-480.0,0.00019178,2]
[387410173,1758719434762,-481.09356457,0.00019178,2]
[387410174,1758719434771,-481.44435965,0.00019178,2]
[387410175,1758719434780,-482.4347397,0.00019178,2]
[387410176,1758719434791,-480.0,0.00019178,2]
[387410177,1758719434800,-480.0,0.00019178,2]
[387410178,1758719434810,-480.0,0.00019178,2]
[387410179,1758719434819,-480.0,0.00019178,2]
[387410180,1758719434830,-480.0,0.00019178,2]
[387410181,1758719434839,-480.0,0.00019178,2]
[387410182,1758719434849,-480.0,0.00019178,2]
[387410183,1758719434859,-480.0,0.00019178,2]
[387410184,1758719434868,-480.0,0.00019178,2]
[387410185,1758719434878,-480.0,0.00019178,2]
[387410186,1758719434888,-480.0,0.00019178,2]
[387410187,1758719434899,-482.11765516,0.00019178,2]
[387410188,1758719434908,-480.0,0.00019178,2]
[387410189,1758719434918,-480.0,0.00019178,2]
[387410190,1758719434927,-480.0,0.00019178,2]
[387410191,1758719434937,-480.0,0.00019178,2]
[387410192,1758719434947,-212.28233121,0.00019178,2]
[387410193,1758719434957,-362.82272072,0.00019178,2]
[387410194,1758719438590,-123.09898423,0.00019178,2]
[387410195,1758719438600,-483.74273369,0.00019178,2]
[387410196,1758719438610,-480.0,0.00019178,2]
[387410197,1758719438620,-480.0,0.00019178,2]
[387410198,1758719438630,-480.0,0.00019178,2]
[387410199,1758719438639,-480.0,0.00019178,2]
[387410200,1758719438649,-480.0,0.00019178,2]
[387410201,1758719438660,-480.0,0.00019178,2]
[387410202,1758719438670,-453.96803625,0.00019178,2]
[387410203,1758719438680,-480.0,0.00019178,2]
[387410204,1758719438690,-480.0,0.00019178,2]
[387410205,1758719438699,-482.07270938,0.00019178,2]
[387410206,1758719438709,-480.0,0.00019178,2]
[387410207,1758719438721,-480.0,0.00019178,2]
[387410208,1758719438731,-487.46611764,0.00019178,2]
[387410209,1758719438741,-480.0,0.00019178,2]
[387410210,1758719438751,-480.0,0.00019178,2]
[387410211,1758719438760,-481.80474703,0.00019178,2]
[387410212,1758719438770,-480.0,0.00019178,2]
[387410213,1758719438780,-480.0,0.00019178,2]
[387410214,1758719438789,-480.0,0.00019178,2]
[387410215,1758719438799,-480.0,0.00019178,2]
[387410216,1758719438809,-480.0,0.00019178,2]
[387410217,1758719438819,-480.0,0.00019178,2]
[387410218,1758719438829,-480.0,0.00019178,2]
[387410219,1758719438839,-480.0,0.00019178,2]
[387410220,1758719438848,-198.60403105,0.00019178,2]
[387410224,1758719439081,-281.39596895,0.00019178,2]
[387410225,1758719439091,-480.0,0.00019178,2]
[387410226,1758719439101,-480.0,0.00019178,2]
[387410227,1758719439110,-480.0,0.00019178,2]
[387410228,1758719439120,-480.0,0.00019178,2]
[387410229,1758719439129,-480.0,0.00019178,2]
[387410230,1758719439139,-480.0,0.00019178,2]
[387410231,1758719439149,-480.0,0.00019178,2]
[387410232,1758719439158,-480.0,0.00019178,2]
[387410233,1758719439168,-480.0,0.00019178,2]
[387410234,1758719439178,-480.0,0.00019178,2]
[387410235,1758719439188,-480.0,0.00019178,2]
[387410236,1758719439198,-480.0,0.00019178,2]
[387410237,1758719439207,-483.4758436,0.00019178,2]
[387410238,1758719439217,-480.0,0.00019178,2]
[387410239,1758719439226,-480.0,0.00019178,2]
[387410240,1758719439235,-480.0,0.00019178,2]
[387410241,1758719439245,-480.0,0.00019178,2]
[387410242,1758719439254,-480.0,0.00019178,2]
[387410243,1758719439263,-480.0,0.00019178,2]
[387410244,1758719439273,-483.15128933,0.00019178,2]
[387410245,1758719439283,-480.0,0.00019178,2]
[387410246,1758719439292,-484.28148041,0.00019178,2]
[387410247,1758719439302,-483.85496651,0.00019178,2]
[387410248,1758719439311,-480.0,0.00019178,2]
[387410249,1758719439321,-480.0,0.00019178,2]
[387410250,1758719439330,-480.0,0.00019178,2]
[387410251,1758719439339,-480.0,0.00019178,2]
[387410252,1758719439348,-480.0,0.00019178,2]
[387410253,1758719439357,-481.97136791,0.00019178,2]
[387410254,1758719439367,-480.0,0.00019178,2]
[387410255,1758719439376,-899.66,0.00019178,2]
[387410256,1758719439386,-480.0,0.00019178,2]
[387410257,1758719439396,-480.0,0.00019178,2]
[387410258,1758719439405,-480.0,0.00019178,2]
[387410259,1758719439414,-480.0,0.00019178,2]
[387410260,1758719439424,-480.0,0.00019178,2]
[387410261,1758719439434,-480.0,0.00019178,2]
[387410262,1758719439444,-480.0,0.00019178,2]
[387410263,1758719439456,-480.0,0.00019178,2]
[387410264,1758719439465,-480.0,0.00019178,2]
[387410265,1758719439475,-480.0,0.00019178,2]
[387410266,1758719439484,-480.0,0.00019178,2]
[387410267,1758719439494,-483.75388732,0.00019178,2]
[387410268,1758719439503,-480.0,0.00019178,2]
[387410269,1758719439513,-480.0,0.00019178,2]
[387410270,1758719439522,-480.0,0.00019178,2]
[387410271,1758719439532,-480.0,0.00019178,2]
[387410272,1758719439541,-480.13,0.00019178,2]
[387410273,1758719439550,-519.16,0.00019178,2]
[387410274,1758719439560,-480.0,0.00019178,2]
[387410275,1758719439570,-480.0,0.00019178,2]
[387410276,1758719439580,-281.32815379,0.00019178,2]
[387410277,1758719439590,-480.0,0.00019178,2]
[387410278,1758719439599,-480.0,0.00019178,2]
[387410279,1758719439608,-481.41222381,0.00019178,2]
[387410280,1758719439618,-480.0,0.00019178,2]
[387410281,1758719439627,-481.54287733,0.00019178,2]
[387410282,1758719439638,-482.68060887,0.00019178,2]
[387410283,1758719439655,-480.0,0.00019178,2]
[387410284,1758719439664,-480.0,0.00019178,2]
[387410285,1758719439673,-480.0,0.00019178,2]
[387410286,1758719439682,-480.0,0.00019178,2]
[387410287,1758719439692,-381.03147638,0.00019178,2]
[387410288,1758719439701,-480.0,0.00019178,2]
[387410289,1758719439710,-483.18472863,0.00019178,2]
[387410290,1758719439720,-480.0,0.00019178,2]
[387410291,1758719439729,-480.0,0.00019178,2]
[387410292,1758719439739,-480.0,0.00019178,2]
[387410293,1758719439748,-480.0,0.00019178,2]
[387410294,1758719439758,-480.0,0.00019178,2]
[387410295,1758719439767,-480.0,0.00019178,2]
[387410296,1758719439776,-480.0,0.00019178,2]
[387410297,1758719439786,-481.75960296,0.00019178,2]
[387410298,1758719439795,-151.0,0.00019178,2]
[387410299,1758719439804,-480.0,0.00019178,2]
[387410300,1758719439814,-151.0,0.00019178,2]
[387410301,1758719439823,-480.0,0.00019178,2]
[387410302,1758719439832,-500.0,0.00019178,2]
[387410303,1758719439841,-151.0,0.00019178,2]
[387410304,1758719439850,-480.0,0.00019178,2]
[387410305,1758719439860,-486.30135489,0.00019178,2]
[387410306,1758719439869,-480.0,0.00019178,2]
[387410307,1758719439879,-480.0,0.00019178,2]
[387410308,1758719439888,-480.0,0.00019178,2]